fUSD/lending_fUSD_20241219
["ID","MTS","AMOUNT","RATE_DAILY","PERIOD"]
[346024591,1734633033518,-625.32,0.00023689,7]
[346024593,1734633033528,-500.0,0.00023727,4]
[346024595,1734633033537,-500.0,0.00023727,4]
[346024597,1734633033547,-500.0,0.00023727,4]
[346024599,1734633033557,-500.0,0.00023727,4]
[346024601,1734633033566,-500.0,0.00023727,4]
[346024603,1734633033576,-500.0,0.00023727,4]
[346024605,1734633033585,-500.0,0.00023727,4]
[346024606,1734633033594,-500.0,0.00023727,4]
[346024608,1734633033603,-1006.83,0.00023727,4]
[346024611,1734633033613,-500.0,0.00023727,4]
[346024612,1734633033623,-542.42,0.00023727,4]
[346024614,1734633033633,-198.54,0.00023727,4]
[346024616,1734633033642,-392.49,0.00023727,4]
[346024618,1734633033656,-251.17,0.00023727,4]
[346024621,1734633033667,-500.0,0.00023727,4]
[346024622,1734633033677,-515.68,0.00023727,4]
[346024624,1734633033687,-500.0,0.00023727,4]
[346024626,1734633033696,-500.0,0.00023727,4]
[346024628,1734633033706,-150.0,0.00023737,4]
[346024630,1734633033716,-424.455,0.0002375,2]
[346024632,1734633033726,-165.39948093,0.00023753,2]
[346024634,1734633033736,-161.45,0.00023774,2]
[346024636,1734633033745,-1000.0,0.00023794,2]
[346024638,1734633033755,-150.0,0.00023796,4]
[346024640,1734633033764,-557.28001721,0.0002383,5]
[346024642,1734633033775,-2076.71045367,0.00023831,5]
[346024644,1734633033788,-244.26613215,0.00023832,5]
[346024646,1734633033798,-2076.71045367,0.00023833,5]
[346024648,1734633033809,-244.26613215,0.00023833,5]
[346024650,1734633033819,-2076.71045367,0.00023834,5]
[346024652,1734633033829,-416.99875649,0.00023835,5]
[346024654,1734633033838,-244.26613215,0.0002384,5]
[346024656,1734633033848,-557.28001721,0.00023845,5]
[346024658,1734633033859,-244.26613215,0.00023845,5]
[346024660,1734633033869,-416.99875649,0.00023852,5]
[346024662,1734633033878,-434.08457684,0.00023853,5]
[346024664,1734633033887,-200.0,0.00023855,5]
[346024666,1734633033899,-244.26613215,0.0002386,5]
[346024668,1734633033909,-244.26613215,0.00023861,5]
[346024669,1734633033919,-200.0,0.00023862,5]
[346024671,1734633033929,-416.99875649,0.00023863,5]
[346024673,1734633033939,-2076.71045367,0.00023864,5]
[346024675,1734633033949,-557.28001721,0.00023869,5]
[346024677,1734633033959,-434.08457684,0.00023869,5]
[346024679,1734633033969,-416.99875649,0.0002387,5]
[346024681,1734633033979,-416.99875649,0.00023873,5]
[346024683,1734633033988,-434.08457684,0.00023876,5]
[346024685,1734633033998,-557.28001721,0.00023877,5]
[346024687,1734633034007,-557.28001721,0.0002388,5]
[346024688,1734633034017,-557.28001721,0.00023887,5]
[346024689,1734633034026,-2076.71045367,0.00023887,5]
[346024690,1734633034037,-200.0,0.00023888,5]
[346024691,1734633034047,-434.08457684,0.00023888,5]
[346024692,1734633034243,-1102.5377,0.00023891,2]
[346024693,1734633034255,-1787.6813,0.00023891,2]
[346024694,1734633034265,-354.78155699,0.00023891,2]
[346024695,1734633034274,-727.273,0.00023892,2]
[346024696,1734633034284,-1446.1437,0.00023892,2]
[346024697,1734633034294,-220.0,0.00023893,2]
[346024698,1734633034304,-3944.1066,0.00023893,2]
[346024699,1734633034314,-416.99875649,0.00023895,5]
[346024700,1734633034324,-434.08457684,0.00023897,5]
[346024701,1734633034334,-2076.71045367,0.00023899,5]
[346024702,1734633034344,-434.08457684,0.00023899,5]
[346024703,1734633034354,-700.0,0.000239,8]
[346024704,1734633034364,-150.0,0.00023915,4]
[346024705,1734633034373,-500.0,0.00023962,7]
[346024706,1734633034383,-425.54014375,0.00023973,2]
[346024707,1734633034393,-500.0,0.00023973,2]
[346024708,1734633034406,-501.47730796,0.00023973,2]
[346024709,1734633034415,-500.0,0.00023973,2]
[346024710,1734633034426,-150.0,0.00023987,4]
[346024711,1734633034436,-157.81,0.0002399,2]
[346024712,1734633034447,-157.81,0.0002399,2]
[346024713,1734633034456,-157.81,0.0002399,2]
[346024714,1734633034466,-157.81,0.0002399,2]
[346024715,1734633034476,-157.81,0.0002399,2]
[346024716,1734633034487,-157.81,0.0002399,2]
[346024717,1734633034497,-157.81,0.0002399,2]
[346024718,1734633034508,-157.81,0.0002399,2]
[346024719,1734633034518,-157.81,0.0002399,2]
[346024720,1734633034528,-157.81,0.0002399,2]
[346024721,1734633034538,-1240.61,0.00023991,4]
[346024722,1734633034549,-500.0,0.00023991,4]
[346024723,1734633034559,-692.84,0.00023991,4]
[346024724,1734633034569,-500.0,0.00023991,4]
[346024725,1734633034580,-500.0,0.00023991,4]
[346024726,1734633034590,-500.0,0.00023991,4]
[346024727,1734633034600,-632.35569282,0.00023991,4]
[346024728,1734633034611,-500.0,0.00023991,4]
[346024729,1734633034621,-500.0,0.00023991,4]
[346024730,1734633034631,-610.37,0.00023991,4]
[346024731,1734633034641,-500.0,0.00023991,4]
[346024732,1734633034655,-625.00417289,0.00023991,4]
[346024733,1734633034665,-500.0,0.00023991,4]
[346024734,1734633034674,-500.0,0.00023991,4]
[346024735,1734633034684,-500.0,0.00023991,4]
[346024736,1734633034694,-500.0,0.00023991,4]
[346024737,1734633034704,-500.0,0.00023991,4]
[346024738,1734633034714,-500.0,0.00023991,4]
[346024739,1734633034724,-500.0,0.00023991,4]
[346024740,1734633034734,-500.0,0.00023991,4]
[346024741,1734633034744,-500.0,0.00023991,4]
[346024742,1734633034754,-500.0,0.00023991,4]
[346024743,1734633034764,-500.0,0.00023991,2]
[346024744,1734633034774,-539.04742541,0.00023991,4]
[346024745,1734633034784,-500.0,0.00023991,4]
[346024746,1734633034795,-500.0,0.00023991,4]
[346024747,1734633034804,-500.0,0.00023991,4]
[346024748,1734633034813,-500.0,0.00023991,4]
[346024749,1734633034823,-500.0,0.00023991,4]
[346024750,1734633034832,-500.0,0.00023991,4]
[346024751,1734633034842,-500.0,0.00023991,4]
[346024752,1734633034852,-500.0,0.00023991,4]
[346024753,1734633034861,-500.0,0.00023991,4]
[346024754,1734633034872,-500.0,0.00023991,4]
[346024755,1734633034881,-500.0,0.00023991,4]
[346024756,1734633034891,-500.0,0.00023991,4]
[346024757,1734633034904,-500.0,0.00023991,4]
[346024758,1734633034913,-500.0,0.00023991,4]
[346024759,1734633034923,-500.0,0.00023991,4]
[346024760,1734633034936,-500.0,0.00023991,4]
[346024761,1734633034946,-251.569626,0.00023991,4]
[346024762,1734633034956,-599.697504,0.00023991,4]
[346024763,1734633034966,-500.0,0.00023991,4]
[346024764,1734633034976,-500.0,0.00023991,4]
[346024765,1734633034985,-500.0,0.00023991,4]
[346024766,1734633034995,-644.18,0.00023991,4]
[346024767,1734633035005,-500.0,0.00023991,4]
[346024768,1734633035015,-500.0,0.00023991,4]
[346024769,1734633035024,-500.0,0.00023991,4]
[346024770,1734633035034,-500.0,0.00023991,4]
[346024771,1734633035045,-500.0,0.00023991,4]
[346024772,1734633035054,-500.0,0.00023991,4]
[346024773,1734633035064,-500.0,0.00023991,4]
[346024774,1734633035074,-500.0,0.00023991,4]
[346024775,1734633035085,-500.0,0.00023991,4]
[346024776,1734633035094,-500.0,0.00023991,4]
[346024777,1734633035105,-500.0,0.00023991,4]
[346024778,1734633035115,-500.0,0.00023991,4]
[346024779,1734633035125,-1128.66,0.00023991,4]
[346024780,1734633035135,-580.72,0.00023991,4]
[346024781,1734633035144,-500.0,0.00023991,4]
[346024782,1734633035160,-500.0,0.00023991,4]
[346024783,1734633035170,-500.0,0.00023991,4]
[346024784,1734633035180,-500.0,0.00023991,4]
[346024785,1734633035189,-500.0,0.00023991,4]
[346024786,1734633035198,-416.78369554,0.00023991,4]
[346024787,1734633035207,-500.0,0.00023991,4]
[346024788,1734633035217,-500.0,0.00023991,4]
[346024789,1734633035227,-500.0,0.00023991,4]
[346024790,1734633035237,-500.0,0.00023991,4]
[346024791,1734633035246,-500.0,0.00023991,4]
[346024792,1734633035256,-500.0,0.00023991,4]
[346024793,1734633035265,-500.0,0.00023991,4]
[346024794,1734633035275,-500.0,0.00023991,4]
[346024795,1734633035285,-500.0,0.00023991,4]
[346024796,1734633035295,-542.39,0.00023991,4]
[346024797,1734633035304,-500.0,0.00023991,4]
[346024798,1734633035314,-16405.6371,0.00023992,2]
[346024799,1734633035323,-296.4035143,0.00023992,4]
[346024800,1734633035333,-500.0,0.00023992,4]
[346024801,1734633035342,-392.38674322,0.00023992,4]
[346024802,1734633035351,-500.0,0.00023992,4]
[346024803,1734633035361,-500.0,0.00023992,4]
[346024804,1734633035371,-500.0,0.00023992,4]
[346024805,1734633035381,-502.19167344,0.00023992,4]
[346024806,1734633035391,-161.33092395,0.00023992,4]
[346024807,1734633035403,-500.0,0.00023992,4]
[346024808,1734633035413,-577.8604374,0.00023992,4]
[346024809,1734633035423,-500.0,0.00023992,4]
[346024810,1734633035434,-169.04605173,0.00023992,4]
[346024811,1734633035443,-500.0,0.00023992,4]
[346024812,1734633035453,-500.0,0.00023992,4]
[346024813,1734633035463,-500.0,0.00023992,4]
[346024814,1734633035473,-500.0,0.00023992,4]
[346024815,1734633035482,-500.0,0.00023992,4]
[346024816,1734633035492,-211.11406158,0.00023992,4]
[346024817,1734633035502,-500.0,0.00023992,4]
[346024818,1734633035512,-500.0,0.00023992,4]
[346024819,1734633035521,-500.0,0.00023992,4]
[346024820,1734633035531,-500.0,0.00023992,4]
[346024821,1734633035541,-500.0,0.00023992,4]
[346024822,1734633035550,-500.0,0.00023992,2]
[346024823,1734633035560,-500.0,0.00023992,4]
[346024824,1734633035570,-502.8198022,0.00023992,4]
[346024825,1734633035580,-500.0,0.00023992,4]
[346024826,1734633035589,-502.19093029,0.00023992,4]
[346024827,1734633035598,-500.0,0.00023992,4]
[346024828,1734633035607,-507.47689465,0.00023992,4]
[346024829,1734633035616,-3995.92115829,0.00023992,4]
[346024830,1734633035626,-500.0,0.00023992,4]
[346024831,1734633035637,-500.0,0.00023992,4]
[346024832,1734633035647,-500.0,0.00023992,4]
[346024833,1734633035660,-500.0,0.00023992,4]
[346024834,1734633035669,-500.0,0.00023992,4]
[346024835,1734633035679,-500.0,0.00023992,4]
[346024836,1734633035688,-500.0,0.00023992,4]
[346024837,1734633035697,-500.0,0.00023992,4]
[346024838,1734633035706,-500.0,0.00023992,4]
[346024839,1734633035716,-785.97,0.00023992,4]
[346024840,1734633035726,-654.64,0.00023992,4]
[346024841,1734633035736,-500.0,0.00023992,4]
[346024842,1734633035746,-500.0,0.00023992,4]
[346024843,1734633035757,-500.0,0.00023992,4]
[346024844,1734633035767,-530.63,0.00023992,4]
[346024845,1734633035779,-500.0,0.00023992,4]
[346024846,1734633035788,-500.0,0.00023992,4]
[346024847,1734633035799,-921.81,0.00023992,4]
[346024848,1734633035809,-500.0,0.00023992,4]
[346024849,1734633035819,-500.0,0.00023992,4]
[346024850,1734633035829,-500.0,0.00023992,4]
[346024851,1734633035839,-500.0,0.00023992,4]
[346024852,1734633035848,-500.0,0.00023992,4]
[346024853,1734633035857,-500.0,0.00023992,4]
[346024854,1734633035866,-500.0,0.00023992,4]
[346024855,1734633035876,-500.0,0.00023992,4]
[346024856,1734633035886,-388.58975533,0.00023992,4]
[346024857,1734633035896,-500.0,0.00023992,4]
[346024858,1734633035912,-500.0,0.00023992,4]
[346024859,1734633035922,-500.0,0.00023992,4]
[346024860,1734633035932,-500.0,0.00023999,4]
[346024861,1734633035942,-500.0,0.00023999,4]
[346024862,1734633035952,-500.0,0.00023999,4]
[346024863,1734633035961,-500.0,0.00023999,4]
[346024864,1734633035971,-500.0,0.00023999,4]
[346024865,1734633035981,-500.0,0.00023999,4]
[346024866,1734633035990,-500.0,0.00023999,4]
[346024867,1734633036000,-500.0,0.00023999,4]
[346024868,1734633036009,-500.0,0.00023999,4]
[346024869,1734633036018,-500.0,0.00023999,4]
[346024870,1734633036028,-500.0,0.00023999,4]
[346024871,1734633036037,-500.0,0.00023999,4]
[346024872,1734633036047,-500.0,0.00023999,4]
[346024873,1734633036057,-500.0,0.00023999,4]
[346024874,1734633036066,-500.0,0.00023999,4]
[346024875,1734633036075,-500.0,0.00023999,4]
[346024876,1734633036085,-500.0,0.00023999,4]
[346024877,1734633036095,-500.0,0.00023999,4]
[346024878,1734633036105,-500.0,0.00023999,2]
[346024879,1734633036115,-500.0,0.00023999,4]
[346024880,1734633036124,-500.0,0.00023999,4]
[346024881,1734633036133,-500.0,0.00023999,4]
[346024882,1734633036143,-500.0,0.00023999,4]
[346024883,1734633036156,-500.0,0.00023999,4]
[346024884,1734633036166,-500.0,0.00023999,4]
[346024885,1734633036175,-500.0,0.00023999,4]
[346024886,1734633036185,-500.0,0.00023999,4]
[346024887,1734633036194,-500.0,0.00023999,4]
[346024888,1734633036203,-500.0,0.00023999,4]
[346024889,1734633036212,-215.31590147,0.00023999,4]
[346024890,1734633036221,-500.0,0.00023999,4]
[346024891,1734633036231,-500.0,0.00023999,4]
[346024892,1734633036240,-500.0,0.00023999,4]
[346024893,1734633036249,-500.0,0.00023999,4]
[346024894,1734633036259,-500.0,0.00023999,4]
[346024895,1734633036268,-500.0,0.00023999,4]
[346024896,1734633036278,-500.0,0.00023999,4]
[346024897,1734633036287,-500.0,0.00023999,4]
[346024898,1734633036297,-500.0,0.00023999,4]
[346024899,1734633036307,-500.0,0.00023999,4]
[346024900,1734633036316,-500.0,0.00023999,4]
[346024901,1734633036326,-500.0,0.00023999,4]
[346024902,1734633036335,-500.0,0.00023999,4]
[346024903,1734633036344,-500.0,0.00023999,4]
[346024904,1734633036354,-500.0,0.00023999,4]
[346024905,1734633036363,-500.0,0.00023999,4]
[346024906,1734633036372,-500.0,0.00023999,4]
[346024907,1734633036382,-500.0,0.00023999,4]
[346024908,1734633036392,-500.0,0.00023999,4]
[346024909,1734633036402,-500.0,0.00023999,4]
[346024910,1734633036411,-500.0,0.00023999,4]
[346024911,1734633036421,-500.0,0.00023999,4]
[346024912,1734633036430,-500.0,0.00023999,2]
[346024913,1734633036440,-500.0,0.00023999,4]
[346024914,1734633036449,-500.0,0.00023999,4]
[346024915,1734633036459,-500.0,0.00023999,4]
[346024916,1734633036470,-500.0,0.00023999,4]
[346024917,1734633036480,-500.0,0.00023999,4]
[346024918,1734633036491,-500.0,0.00023999,4]
[346024919,1734633036501,-500.0,0.00023999,4]
[346024920,1734633036510,-500.0,0.00023999,4]
[346024921,1734633036520,-500.0,0.00023999,4]
[346024922,1734633036529,-500.0,0.00023999,4]
[346024923,1734633036538,-500.0,0.00023999,4]
[346024924,1734633036547,-500.0,0.00023999,4]
[346024925,1734633036557,-500.0,0.00023999,4]
[346024926,1734633036567,-500.0,0.00023999,4]
[346024927,1734633036576,-500.0,0.00023999,4]
[346024928,1734633036585,-500.0,0.00023999,4]
[346024929,1734633036594,-500.0,0.00023999,4]
[346024930,1734633036604,-500.0,0.00023999,4]
[346024931,1734633036613,-500.0,0.00023999,4]
[346024932,1734633036622,-500.0,0.00023999,4]
[346024933,1734633036631,-500.0,0.00023999,4]
[346024934,1734633036641,-500.0,0.00023999,4]
[346024935,1734633036652,-500.0,0.00023999,4]
[346024936,1734633036662,-500.0,0.00023999,4]
[346024937,1734633036671,-500.0,0.00023999,4]
[346024938,1734633036680,-500.0,0.00023999,4]
[346024939,1734633036689,-500.0,0.00023999,4]
[346024940,1734633036699,-500.0,0.00023999,4]
[346024941,1734633036708,-500.0,0.00023999,4]
[346024942,1734633036717,-500.0,0.00023999,4]
[346024943,1734633036727,-500.0,0.00023999,4]
[346024944,1734633036736,-500.0,0.00023999,4]
[346024945,1734633036746,-500.0,0.00023999,4]
[346024946,1734633036755,-500.0,0.00023999,4]
[346024947,1734633036765,-530.62267789,0.00023999,2]
[346024948,1734633036774,-500.0,0.00023999,4]
[346024949,1734633036788,-500.0,0.00023999,4]
[346024950,1734633036802,-500.0,0.00023999,4]
[346024951,1734633036811,-500.0,0.00023999,4]
[346024952,1734633036820,-500.0,0.00023999,4]
[346024953,1734633036830,-500.0,0.00023999,4]
[346024954,1734633036839,-500.0,0.00023999,4]
[346024955,1734633036849,-500.0,0.00023999,4]
[346024956,1734633036858,-500.0,0.00023999,4]
[346024957,1734633036868,-500.0,0.00023999,4]
[346024958,1734633036877,-500.0,0.00023999,4]
[346024959,1734633036886,-500.0,0.00023999,4]
[346024960,1734633036895,-500.0,0.00023999,4]
[346024961,1734633036907,-500.0,0.00023999,4]
[346024962,1734633036916,-500.0,0.00023999,2]
[346024963,1734633036926,-500.0,0.00023999,4]
[346024964,1734633036934,-500.0,0.00023999,4]
[346024965,1734633036944,-500.0,0.00023999,4]
[346024966,1734633036953,-706.52,0.00023999,4]
[346024967,1734633036962,-500.0,0.00023999,4]
[346024968,1734633036971,-500.0,0.00023999,4]
[346024969,1734633036980,-500.0,0.00023999,4]
[346024970,1734633036989,-500.0,0.00023999,4]
[346024971,1734633036999,-500.0,0.00023999,4]
[346024972,1734633037008,-500.0,0.00023999,4]
[346024973,1734633037017,-500.0,0.00023999,4]
[346024974,1734633037026,-165.39948093,0.00024,2]
[346024975,1734633037037,-5035.70168,0.00024,30]
[346024976,1734633037047,-5000.01523829,0.00024,10]
[346024977,1734633037056,-4251.7303902,0.00024,3]
[346024978,1734633037065,-625032.56812437,0.00024,5]
[346024979,1734633037086,-500.0,0.00023453,4]
[346024980,1734633037095,-1211.0,0.00024,5]
[346024981,1734633037106,-525.52863154,0.00024,5]
[346024982,1734633037117,-15151.2270461,0.00024,5]
[346024983,1734633037131,-500.0,0.00023727,4]
[346024984,1734633037140,-9203.25639999,0.00024,5]
[346024985,1734633037154,-259.41442176,0.00024,5]
[346024986,1734633037165,-455.07,0.00024,5]
[346024987,1734633037176,-12125.69616486,0.00024,5]
[346024988,1734633037187,-971.971,0.00024,5]
[346024989,1734633037198,-4860.496,0.00024,5]
[346024990,1734633037214,-1125.85,0.00023999,4]
[346024991,1734633037223,-41.7164,0.00024,5]
[346024992,1734633037233,-3028.77721829,0.00024,5]
[346024993,1734633037244,-7704.2232308,0.00024,5]
[346025000,1734633037711,-709.935,0.00023062,2]
[346025002,1734633037721,-500.0,0.00023727,4]
[346025004,1734633037731,-1677.175,0.00024,5]
[346025006,1734633037744,-678.86925123,0.00024,5]
[346025007,1734633037765,-484.385,0.00024,5]
[346025008,1734633037778,-973.8,0.00024,5]
[346025009,1734633037825,-730.13621644,0.00024,5]
[346025010,1734633037837,-48509.70000005,0.00024,5]
[346025011,1734633037849,-5261.07814937,0.00024,5]
[346025012,1734633037861,-1712.71087648,0.00024,5]
[346025013,1734633037882,-1322.5644091,0.00024,5]
[346025014,1734633037960,-94935.37501424,0.00024,5]
[346025015,1734633037972,-8504.8563959,0.00024,5]
[346025016,1734633038018,-36097.19935057,0.00024,5]
[346025017,1734633038030,-7343.0988326,0.00024,5]
[346025018,1734633038042,-976.50197649,0.00024,5]
[346025019,1734633038054,-1431.79746734,0.00024,5]
[346025020,1734633038066,-1369.12386347,0.00024,5]
[346025021,1734633038078,-121232.91619998,0.00024,5]
[346025022,1734633038090,-9394.09584648,0.00024,5]
[346025023,1734633038101,-2629.1892552,0.00024,5]
[346025024,1734633038113,-2190.0,0.00024,5]
[346025025,1734633038130,-698.0000002,0.00024,5]
[346025026,1734633038141,-804.97987886,0.00024,5]
[346025027,1734633038186,-500.0,0.00023179,4]
[346025029,1734633038195,-1479.662167,0.00024,5]
[346025031,1734633038207,-2198.98756785,0.00024,5]
[346025051,1734633039896,-475.19616427,0.000209,2]
[346025052,1734633039911,-3126.13424394,0.000209,2]
[346025053,1734633039920,-500.0,0.00023453,4]
[346025054,1734633039930,-500.0,0.00023727,4]
[346025055,1734633039940,-5604.96575606,0.00024,5]
[346025056,1734633039955,-281.0,0.00024,5]
[346025057,1734633039967,-3169.77481275,0.00024,5]
[346025058,1734633039979,-2845830.85879284,0.00024,5]
[346025059,1734633039989,-4731.04773516,0.00024,2]
[346025060,1734633039999,-1500.0,0.00024,8]
[346025061,1734633040008,-500.0,0.00024001,4]
[346025062,1734633040018,-500.0,0.00024001,4]
[346025063,1734633040028,-500.0,0.00024001,4]
[346025064,1734633040037,-500.0,0.00024001,4]
[346025065,1734633040047,-500.0,0.00024001,4]
[346025066,1734633040056,-470.05597364,0.00024001,4]
[346025067,1734633040066,-500.0,0.00024001,4]
[346025068,1734633040075,-422.39872649,0.00024001,4]
[346025069,1734633040085,-1006.83,0.00024001,4]
[346025070,1734633040094,-205.23,0.00024001,4]
[346025071,1734633040104,-500.0,0.00024001,4]
[346025072,1734633040114,-515.68,0.00024001,4]
[346025073,1734633040123,-500.0,0.00024001,4]
[346025074,1734633040132,-500.0,0.00024001,4]
[346025075,1734633040141,-564.42,0.00024001,4]
[346025076,1734633040151,-500.0,0.00024001,4]
[346025077,1734633040165,-500.0,0.00024001,4]
[346025078,1734633040175,-150.0,0.00024034,4]
[346025079,1734633040184,-1544.9644684,0.00024053,2]
[346025080,1734633040194,-436.69,0.00024055,2]
[346025081,1734633040204,-436.69,0.00024055,2]
[346025082,1734633040214,-371.02,0.00024055,2]
[346025083,1734633040223,-956.78,0.00024059,2]
[346025084,1734633040233,-2300.0,0.000241,8]
[346025085,1734633040243,-1544.96446837,0.00024147,2]
[346025086,1734633040253,-150.0,0.00024153,4]
[346025087,1734633040263,-157.81,0.00024155,2]
[346025088,1734633040273,-5000.0,0.00024165,2]
[346025089,1734633040283,-729.54,0.00024192,2]
[346025090,1734633040294,-976.54,0.00024192,2]
[346025092,1734633040304,-436.03,0.00024192,2]
[346025093,1734633040314,-976.54,0.00024192,2]
[346025095,1734633040323,-436.03,0.00024192,2]
[346025096,1734633040333,-436.03,0.00024192,2]
[346025097,1734633040342,-976.54,0.00024192,2]
[346025098,1734633040352,-436.03,0.00024192,2]
[346025100,1734633040362,-436.03,0.00024192,2]
[346025102,1734633040372,-994.72,0.00024192,2]
[346025104,1734633040381,-36463.28412669,0.000242,2]
[346025106,1734633040391,-3000.0,0.000242,8]
[346025108,1734633040403,-150.0,0.00024231,120]
[346025109,1734633040415,-500.0,0.00024235,7]
[346025111,1734633040425,-1544.96446837,0.00024241,2]
[346025112,1734633040434,-165.39948093,0.00024247,2]
[346025113,1734633040444,-500.0,0.00024264,4]
[346025114,1734633040454,-500.0,0.00024264,4]
[346025115,1734633040464,-500.0,0.00024264,4]
[346025116,1734633040474,-500.0,0.00024264,4]
[346025117,1734633040484,-500.0,0.00024264,4]
[346025118,1734633040494,-500.0,0.00024264,4]
[346025119,1734633040503,-500.0,0.00024264,4]
[346025120,1734633040512,-543.89,0.00024264,2]
[346025121,1734633040522,-500.0,0.00024264,4]
[346025122,1734633040532,-500.0,0.00024264,4]
[346025123,1734633040541,-500.0,0.00024264,4]
[346025124,1734633040550,-500.0,0.00024264,4]
[346025126,1734633040560,-500.0,0.00024264,4]
[346025127,1734633040569,-609.43,0.00024264,4]
[346025128,1734633040578,-500.0,0.00024264,4]
[346025129,1734633040588,-500.0,0.00024264,4]
[346025130,1734633040597,-500.0,0.00024264,4]
[346025133,1734633040606,-500.0,0.00024264,4]
[346025134,1734633040615,-500.0,0.00024264,4]
[346025135,1734633040625,-500.0,0.00024264,4]
[346025136,1734633040634,-500.0,0.00024264,4]
[346025137,1734633040643,-808.88,0.00024264,4]
[346025138,1734633040652,-500.0,0.00024264,4]
[346025139,1734633040668,-500.0,0.00024264,4]
[346025140,1734633040677,-626.96537275,0.00024264,4]
[346025141,1734633040687,-500.0,0.00024264,4]
[346025142,1734633040697,-500.0,0.00024264,4]
[346025143,1734633040706,-1792.64,0.00024264,4]
[346025144,1734633040716,-500.0,0.00024264,4]
[346025145,1734633040725,-500.0,0.00024264,4]
[346025146,1734633040734,-500.0,0.00024264,4]
[346025147,1734633040744,-500.0,0.00024264,4]
[346025148,1734633040754,-500.0,0.00024264,4]
[346025149,1734633040764,-500.0,0.00024264,4]
[346025150,1734633040774,-500.0,0.00024264,4]
[346025151,1734633040788,-500.0,0.00024264,4]
[346025152,1734633040798,-1000.0,0.00024264,4]
[346025153,1734633040807,-500.0,0.00024264,4]
[346025154,1734633040816,-500.0,0.00024264,4]
[346025155,1734633040826,-500.0,0.00024264,4]
[346025156,1734633040835,-500.0,0.00024264,4]
[346025157,1734633040845,-1240.61,0.00024265,4]
[346025158,1734633040855,-692.84,0.00024265,4]
[346025159,1734633040865,-500.0,0.00024265,4]
[346025160,1734633040874,-418.17,0.00024265,4]
[346025161,1734633040884,-500.0,0.00024265,4]
[346025162,1734633040893,-256.57802681,0.00024265,4]
[346025163,1734633040902,-500.0,0.00024265,2]
[346025164,1734633040914,-500.0,0.00024265,4]
[346025165,1734633040924,-500.0,0.00024265,4]
[346025166,1734633040933,-500.0,0.00024265,4]
[346025167,1734633040942,-223.05,0.00024265,4]
[346025168,1734633040951,-602.62,0.00024265,4]
[346025169,1734633040961,-500.0,0.00024265,4]
[346025170,1734633040970,-500.0,0.00024265,4]
[346025171,1734633040980,-525.01,0.00024265,4]
[346025172,1734633040989,-500.0,0.00024265,4]
[346025173,1734633040999,-500.0,0.00024265,4]
[346025174,1734633041008,-500.0,0.00024265,4]
[346025175,1734633041017,-500.0,0.00024265,4]
[346025176,1734633041027,-448.39292239,0.00024265,4]
[346025177,1734633041035,-644.18,0.00024265,4]
[346025178,1734633041045,-500.0,0.00024265,4]